bitfinex/quotes_SOLUSD_20241123
["timestamp","ask_amount","ask_price","bid_price","bid_amount"]
[1732371071195,8.05818194,259.93,259.85,15.0704]
[1732371071490,8.05818194,259.95,259.87,8.05818194]
[1732371072196,8.05818194,259.93,259.85,23.12858194]
[1732371073771,8.05818194,259.93,259.85,15.0704]
[1732371073974,8.05818194,259.91,259.85,15.0704]
[1732371074796,5.16391793,259.93,259.85,15.0704]
[1732371075383,5.16391793,259.91,259.85,15.0704]
[1732371075587,33.776884,259.96,259.85,15.0704]
[1732371075774,5.16391793,259.93,259.85,15.0704]
[1732371078676,5.16391793,259.91,259.85,15.0704]
[1732371079099,5.16391793,259.93,259.85,15.0704]
[1732371079504,5.16391793,259.95,259.86,5.16391793]
[1732371079798,5.16391793,259.93,259.85,15.0704]
[1732371081104,5.16391793,259.89,259.85,15.0704]
[1732371081478,33.776884,259.96,259.85,15.0704]
[1732371081675,23.776884,259.98,259.85,15.0704]
[1732371082083,5.16391793,259.94,259.85,20.23431793]
[1732371082283,23.776884,260.0,259.87,5.16391793]
[1732371082579,23.72618079,260.02,259.87,5.16391793]
[1732371082799,5.16391793,259.98,259.89,5.16391793]
[1732371083174,17.57208079,260.02,259.87,5.16391793]
[1732371083498,5.16391793,259.96,259.87,5.16391793]
[1732371084291,5.16391793,260.0,259.85,15.0704]
[1732371084501,5.16391793,260.0,259.91,5.16391793]
[1732371084681,5.16391793,259.98,259.88,5.16391793]
[1732371084998,5.16391793,259.96,259.85,15.0704]
[1732371086576,5.16391793,259.96,259.86,5.16391793]
[1732371087396,5.16391793,259.96,259.85,15.0704]
[1732371087597,5.16391793,259.94,259.86,5.16391793]
[1732371087794,5.16391793,259.92,259.85,15.0704]
[1732371087993,5.16391793,259.9,259.85,15.0704]
[1732371088181,5.16391793,259.88,259.85,15.0704]
[1732371089679,3.8469,259.95,259.85,15.0704]
[1732371089899,5.16391793,259.91,259.85,15.0704]
[1732371092309,3.8469,259.95,259.85,15.0704]
[1732371092616,5.16391793,259.91,259.85,15.0704]
[1732371093908,5.16391793,259.89,259.85,15.0704]
[1732371094405,23.776884,259.94,259.85,15.0704]
[1732371094604,5.16391793,259.91,259.85,15.0704]
[1732371098689,23.776884,259.97,259.86,5.16391793]
[1732371098889,5.16391793,259.95,259.86,5.16391793]
[1732371099692,5.16391793,259.95,259.85,15.0704]
[1732371099693,5.16391793,259.95,259.88,5.16391793]
[1732371100888,5.16391793,259.95,259.86,5.16391793]
[1732371102309,5.16391793,259.93,259.86,5.16391793]
[1732371103201,5.16391793,259.93,259.85,20.23431793]
[1732371103404,5.16391793,259.95,259.85,20.23431793]
[1732371103604,5.16391793,259.95,259.87,5.16391793]
[1732371104295,5.16391793,259.95,259.85,20.23431793]
[1732371105118,5.16391793,259.93,259.85,15.0704]
[1732371105411,3.8466,259.97,259.85,15.0704]
[1732371105412,5.16391793,259.91,259.85,15.0704]
[1732371106610,5.16391793,259.87,259.85,15.0704]
[1732371108118,5.16391793,259.89,259.85,15.0704]
[1732371112107,5.16391793,259.87,259.81,6.4228]
[1732371113198,5.16391793,259.87,259.79,25.84681793]
[1732371113504,5.16391793,259.89,259.79,25.84681793]
[1732371114020,5.16391793,259.89,259.79,20.6829]
[1732371114518,5.16391793,259.89,259.8,5.16391793]
[1732371116298,5.16391793,259.85,259.79,20.6829]
[1732371116709,5.16391793,259.87,259.79,20.6829]
[1732371117109,5.16391793,259.85,259.79,20.6829]
[1732371118202,5.16391793,259.8,259.79,20.6829]
[1732371118405,5.16391793,259.8,259.73,8.17]
[1732371119228,5.16391793,259.82,259.74,5.16391793]
[1732371119522,5.16391793,259.8,259.73,8.17]
[1732371121106,23.776884,259.84,259.72,20.1848]
[1732371121309,5.16391793,259.79,259.72,20.1848]
[1732371123423,5.16391793,259.77,259.72,20.1848]
[1732371123608,5.16391793,259.74,259.55,10.0]
[1732371123816,5.16391793,259.72,259.64,5.16391793]
[1732371124332,5.16391793,259.72,259.65,5.16391793]
[1732371124533,5.16391793,259.74,259.67,5.16391793]
[1732371124732,23.776884,259.82,259.69,5.16391793]
[1732371125024,4.01506968,259.83,259.69,33.28441793]
[1732371125231,5.16391793,259.8,259.71,5.16391793]
[1732371126413,5.16391793,259.78,259.71,5.16391793]
[1732371126616,5.16391793,259.78,259.69,33.28441793]
[1732371128130,5.16391793,259.78,259.69,28.1205]
[1732371128307,5.16391793,259.78,259.69,33.28441793]
[1732371128714,5.16391793,259.76,259.69,28.1205]
[1732371129620,5.16391793,259.78,259.69,33.28441793]
[1732371130829,5.16391793,259.81,259.73,5.16391793]
[1732371131634,5.16391793,259.84,259.75,5.16391793]
[1732371132240,14.93400184,259.95,259.79,5.16391793]
[1732371132426,5.16391793,259.85,259.8,20.7741]
[1732371132635,5.16391793,259.87,259.8,20.7741]
[1732371135919,5.16391793,259.85,259.8,20.7741]
[1732371136218,5.16391793,259.85,259.66,10.0]
[1732371136219,5.16391793,259.81,259.66,43.776884]
[1732371136418,5.16391793,259.81,259.72,5.16391793]
[1732371137223,23.776884,259.9,259.66,20.0]
[1732371137224,5.16391793,259.83,259.74,5.16391793]
[1732371137544,5.16391793,259.84,259.76,8.0998]
[1732371138534,5.16391793,259.82,259.76,8.0998]
[1732371139227,23.776884,259.91,259.78,5.16391793]
[1732371139423,5.16391793,259.87,259.78,5.16391793]
[1732371139626,23.776884,259.91,259.78,5.16391793]
[1732371139820,5.16391793,259.87,259.78,5.16391793]
[1732371140430,5.16391793,259.91,259.82,20.5331]
[1732371140634,5.16391793,259.91,259.83,5.16391793]
[1732371140828,5.16391793,259.91,259.82,20.5331]
[1732371141034,5.16391793,259.91,259.83,5.16391793]
[1732371141845,5.16391793,259.93,259.83,5.16391793]
[1732371142427,23.776884,259.92,259.82,20.5331]
[1732371142626,31.84594314,259.92,259.83,8.06905914]
[1732371142840,8.06905914,259.92,259.83,8.06905914]
[1732371143039,23.776884,260.01,259.85,8.06905914]
[1732371143346,8.06905914,259.94,259.85,8.06905914]
[1732371143546,8.06905914,259.98,259.91,8.06905914]
[1732371143754,8.06905914,260.0,259.92,20.5331]
[1732371144626,8.06905914,259.98,259.92,20.5331]
[1732371145133,14.09010779,260.02,259.94,8.06905914]
[1732371145638,6.02104865,260.02,259.94,8.06905914]
[1732371145845,14.09010779,260.02,259.94,8.06905914]
[1732371146025,8.06905914,259.98,259.92,20.5331]
[1732371146349,8.06905914,259.97,259.92,20.5331]
[1732371148151,8.06905914,259.95,259.92,20.5331]
[1732371148737,8.06905914,259.93,259.92,20.5331]
[1732371151031,8.06905914,259.95,259.92,20.5331]
[1732371153843,8.06905914,259.93,259.92,20.5331]
[1732371154526,8.06905914,259.93,259.88,8.0531]
[1732371154725,8.06905914,259.9,259.88,8.0531]
[1732371154946,8.06905914,259.9,259.85,19.0103]
[1732371155948,22.8935,260.01,259.85,19.0103]
[1732371155949,23.776884,259.99,259.85,19.0103]
[1732371156125,8.06905914,259.89,259.85,19.0103]
[1732371157535,8.06905914,259.87,259.85,19.0103]
[1732371157951,8.06905914,259.89,259.85,19.0103]
[1732371159783,23.776884,259.96,259.85,19.0103]
[1732371159963,8.06905914,259.87,259.85,19.0103]
[1732371160257,8.06905914,259.87,259.81,8.0615]
[1732371160432,8.06905914,259.89,259.81,8.0615]
[1732371161040,8.06905914,259.87,259.81,8.0615]
[1732371162866,30.30546978,259.96,259.77,19.0103]
[1732371162867,8.06905914,259.85,259.77,19.0103]
[1732371164135,8.06905914,259.85,259.77,27.07935914]
[1732371164747,5.16631738,259.88,259.79,5.16631738]
[1732371164958,3.79231891,259.96,259.81,5.16631738]
[1732371165668,5.16631738,259.91,259.81,5.16631738]
[1732371167542,5.16631738,259.89,259.81,5.16631738]
[1732371169147,3.79231891,259.96,259.83,5.16631738]
[1732371169346,3.79231891,259.96,259.85,5.16631738]
[1732371169565,3.79231891,260.04,259.9,5.16631738]
[1732371169751,5.16631738,259.99,259.9,5.16631738]
[1732371170851,3.79231891,260.04,259.9,5.16631738]
[1732371171059,5.16631738,260.0,259.92,5.16631738]
[1732371171651,5.16631738,260.02,259.92,5.16631738]
[1732371171852,5.16631738,260.02,259.94,5.16631738]
[1732371173166,5.16631738,260.02,259.87,23.776884]
[1732371173167,5.16631738,260.02,259.92,5.16631738]
[1732371174355,23.776884,260.1,259.94,5.16631738]
[1732371174550,5.16631738,260.02,259.93,20.2267]
[1732371174795,5.16631738,260.02,259.93,25.39301738]
[1732371175074,5.16631738,260.0,259.93,20.2267]
[1732371175571,5.16631738,259.95,259.93,20.2267]
[1732371176274,5.16631738,259.95,259.86,27.9964]
[1732371176470,20.66526952,260.0,259.86,27.9964]
[1732371176471,5.16631738,259.92,259.86,27.9964]
[1732371176652,5.16631738,259.9,259.86,27.9964]
[1732371177854,5.16631738,259.88,259.87,20.0]
[1732371178276,20.66526952,260.0,259.87,20.0]
[1732371178478,5.16631738,259.93,259.86,27.9964]
[1732371178973,3.79231891,260.03,259.89,5.16631738]
[1732371179267,5.16631738,259.98,259.9,20.0]
[1732371179847,5.16631738,259.96,259.9,20.0]
[1732371180053,5.16631738,259.96,259.87,25.16631738]
[1732371180557,3.79231891,260.03,259.87,20.0]
[1732371180558,5.16631738,259.94,259.87,20.0]
[1732371180764,8.06792094,259.93,259.87,20.0]
[1732371182867,8.06792094,259.95,259.87,20.0]
[1732371184175,8.06792094,259.93,259.86,27.9964]
[1732371184555,8.06792094,259.91,259.86,27.9964]
[1732371184969,8.06792094,259.89,259.86,27.9964]
[1732371185675,8.06792094,259.89,259.86,20.2267]
[1732371186361,8.06792094,259.89,259.81,20.0]
[1732371186559,8.06792094,259.89,259.8,15.83762094]
[1732371187787,23.776884,259.81,259.68,19.1025]
[1732371187956,8.06792094,259.75,259.68,19.1025]
[1732371188154,8.06792094,259.77,259.68,19.1025]
[1732371189075,8.06792094,259.75,259.68,19.1025]
[1732371189478,8.06792094,259.73,259.68,19.1025]
[1732371189977,8.06792094,259.73,259.53,10.0]
[1732371189978,8.06792094,259.71,259.62,27.17042094]
[1732371190182,8.06792094,259.73,259.62,19.1025]
[1732371190391,8.06792094,259.73,259.64,8.06792094]
[1732371193056,8.06792094,259.69,259.62,19.1025]
[1732371193260,8.06792094,259.67,259.62,19.1025]
[1732371194578,8.06792094,259.71,259.62,27.17042094]
[1732371196674,8.06792094,259.73,259.64,8.06792094]
[1732371198165,8.06792094,259.68,259.62,19.1025]
[1732371203374,8.06792094,259.7,259.62,19.1025]
[1732371204194,8.06792094,259.68,259.62,19.1025]
[1732371204400,8.06792094,259.66,259.62,19.1025]
[1732371205593,8.06792094,259.64,259.62,19.1025]
[1732371207194,8.06792094,259.68,259.62,19.1025]
[1732371208985,12.8794,259.9,259.66,8.06792094]
[1732371209189,12.8794,259.9,259.63,23.776884]
[1732371209190,12.8794,259.9,259.72,8.06792094]
[1732371209396,16.62443288,259.93,259.72,8.06792094]
[1732371209604,8.06792094,259.8,259.72,8.06792094]
[1732371211206,8.06792094,259.8,259.7,8.06792094]
[1732371211693,8.06792094,259.87,259.68,35.80722094]
[1732371211694,8.06792094,259.76,259.68,35.80722094]
[1732371211894,8.06792094,259.76,259.68,27.7393]
[1732371213489,8.06792094,259.76,259.68,35.80722094]
[1732371214193,8.06792094,259.78,259.68,35.80722094]
[1732371214800,8.06792094,259.76,259.68,35.80722094]
[1732371215008,8.06792094,259.78,259.68,35.80722094]
[1732371216675,8.06792094,259.69,259.59,27.7393]
[1732371216988,8.06792094,259.69,259.6,8.06792094]
[1732371218378,8.06792094,259.69,259.62,8.06792094]
[1732371219089,8.06792094,259.71,259.62,8.06792094]
[1732371219783,8.06792094,259.75,259.66,8.06792094]
[1732371219982,8.06792094,259.75,259.6,43.776884]
[1732371220178,8.06792094,259.75,259.65,8.06792094]
[1732371221295,8.06792094,259.75,259.67,8.06792094]
[1732371222387,8.06792094,259.77,259.67,8.06792094]
[1732371223402,8.06792094,259.79,259.7,27.7393]
[1732371223788,8.06792094,259.79,259.71,8.06792094]
[1732371227899,8.06792094,259.81,259.71,8.06792094]
[1732371229504,8.06792094,259.81,259.73,8.06792094]
[1732371230708,8.06792094,259.84,259.75,8.06792094]
[1732371231009,7.9506,259.93,259.77,8.06792094]
[1732371231010,8.06792094,259.85,259.77,8.06792094]
[1732371231211,8.06792094,259.85,259.75,8.06792094]
[1732371231396,8.06792094,259.83,259.75,8.06792094]
[1732371231916,8.06792094,259.85,259.75,8.06792094]
[1732371232393,23.776884,259.92,259.77,8.06792094]
[1732371232601,8.06792094,259.86,259.77,8.06792094]
[1732371233992,23.776884,259.92,259.7,20.0493]
[1732371233993,8.06792094,259.78,259.7,20.0493]
[1732371234191,8.06792094,259.87,259.7,20.0493]
[1732371234192,8.06792094,259.76,259.7,20.0493]
[1732371237602,8.06792094,259.78,259.7,20.0493]
[1732371243913,8.06792094,259.76,259.7,20.0493]
[1732371244426,8.06792094,259.8,259.71,8.06792094]
[1732371244619,8.06792094,259.86,259.77,8.06792094]
[1732371244847,8.06792094,259.86,259.79,8.06792094]
[1732371245120,8.06792094,259.84,259.77,8.06792094]
[1732371245325,8.06792094,259.82,259.75,8.06792094]
[1732371245901,8.06792094,259.84,259.75,8.06792094]
[1732371246927,8.06792094,259.82,259.74,23.776884]
[1732371247134,8.06792094,259.8,259.73,15.91922094]
[1732371248417,8.06792094,259.82,259.73,15.91922094]
[1732371248731,8.06792094,259.8,259.73,15.91922094]
[1732371250613,8.06792094,259.8,259.73,7.8513]
[1732371251132,8.06792094,259.75,259.6,24.81490383]
[1732371251340,20.8882,259.82,259.63,8.06792094]
[1732371251341,8.06792094,259.72,259.63,8.06792094]
[1732371251635,8.06792094,259.74,259.65,8.06792094]
[1732371251839,8.06792094,259.72,259.63,8.06792094]
[1732371252011,8.06792094,259.74,259.65,8.06792094]
[1732371252831,8.06792094,259.76,259.67,8.06792094]
[1732371253425,8.06792094,259.87,259.61,18.06792094]
[1732371253426,8.06792094,259.78,259.69,8.06792094]
[1732371258869,5.16921121,259.78,259.69,5.16921121]
[1732371261056,5.16921121,259.76,259.68,43.776884]
[1732371261253,5.16921121,259.78,259.69,5.16921121]
[1732371264895,5.16921121,259.8,259.71,5.16921121]
[1732371265065,8.0132,259.88,259.75,5.16921121]
[1732371265257,5.16921121,259.83,259.75,5.16921121]
[1732371265963,3.82042989,259.93,259.79,5.16921121]
[1732371266273,5.16921121,259.9,259.83,5.16921121]
[1732371267064,5.16921121,259.92,259.83,5.16921121]
[1732371267235,5.16921121,259.9,259.81,5.16921121]
[1732371267553,12.8693,259.95,259.72,10.0]
[1732371267554,5.16921121,259.88,259.79,5.16921121]
[1732371268142,5.16921121,259.88,259.8,23.776884]
[1732371268450,12.8693,259.95,259.71,20.0]
[1732371268451,5.16921121,259.86,259.71,20.0]
[1732371268643,12.8693,259.95,259.69,28.4753]
[1732371268644,5.16921121,259.84,259.76,5.16921121]
[1732371268829,5.16921121,259.84,259.74,5.16921121]
[1732371270156,12.8693,259.95,259.78,5.16921121]
[1732371270322,5.16921121,259.88,259.78,5.16921121]
[1732371270734,8.07082075,259.88,259.79,8.07082075]
[1732371272023,8.07082075,259.86,259.77,8.07082075]
[1732371272221,8.07082075,259.84,259.75,23.776884]
[1732371272427,8.07082075,259.84,259.75,31.84770475]
[1732371273948,8.07082075,259.78,259.71,8.07082075]
[1732371275252,8.07082075,259.78,259.69,36.54612075]
[1732371275944,8.07082075,259.78,259.7,23.776884]
[1732371276938,8.07082075,259.77,259.7,23.776884]
[1732371277137,8.07082075,259.79,259.71,8.07082075]
[1732371277538,8.07082075,259.81,259.73,8.07082075]
[1732371279443,8.07082075,259.83,259.75,8.07082075]
[1732371279645,8.07082075,259.85,259.77,8.07082075]
[1732371279849,8.07082075,259.87,259.77,8.07082075]
[1732371280447,8.07082075,259.85,259.77,8.07082075]
[1732371281367,8.07082075,259.87,259.79,8.07082075]
[1732371281663,8.07082075,259.87,259.77,8.07082075]
[1732371281964,8.07082075,259.85,259.77,8.07082075]
[1732371283768,8.07082075,259.85,259.76,23.776884]
[1732371283958,8.07082075,259.83,259.76,23.776884]
[1732371285663,8.07082075,259.85,259.76,23.776884]
[1732371285870,8.07082075,259.85,259.77,8.07082075]
[1732371286367,12.8693,259.9,259.76,23.776884]
[1732371286368,8.07082075,259.87,259.79,8.07082075]
[1732371286757,8.07082075,259.85,259.77,8.07082075]
[1732371286947,8.07082075,259.85,259.78,23.776884]
[1732371287148,8.07082075,259.85,259.77,8.07082075]
[1732371287847,8.07082075,259.85,259.75,8.07082075]
[1732371288072,8.07082075,259.85,259.76,23.776884]
[1732371291374,8.07082075,259.85,259.75,8.07082075]
[1732371291375,8.07082075,259.83,259.75,8.07082075]
[1732371291579,8.07082075,259.81,259.72,23.776884]
[1732371291883,8.07082075,259.79,259.71,8.07082075]
[1732371292671,5.16832271,259.8,259.71,5.16832271]
[1732371293548,5.16832271,259.8,259.72,23.776884]
[1732371295550,5.16832271,259.82,259.73,5.16832271]
[1732371298453,5.16832271,259.82,259.73,5.16832271]
[1732371299562,5.16832271,259.84,259.75,5.16832271]
[1732371299868,27.72082603,259.9,259.77,5.16832271]
[1732371300049,5.16832271,259.86,259.77,5.16832271]
[1732371300462,5.16832271,259.84,259.75,5.16832271]
[1732371300655,5.16832271,259.84,259.76,23.776884]
[1732371301068,5.16832271,259.88,259.79,5.16832271]
[1732371301571,5.16832271,259.86,259.78,23.776884]
[1732371302161,5.16832271,259.84,259.71,23.776884]
[1732371302369,5.16832271,259.82,259.74,43.776884]
[1732371302968,5.16832271,259.82,259.74,23.776884]
[1732371303970,5.16832271,259.84,259.75,5.16832271]
[1732371304685,16.717,259.9,259.69,28.4753]
[1732371304851,5.16832271,259.8,259.7,20.0]
[1732371305166,5.16832271,259.78,259.69,33.64362271]
[1732371305477,5.16832271,259.78,259.69,20.864]
[1732371305666,5.16832271,259.76,259.69,20.864]
[1732371305858,5.16832271,259.78,259.7,5.16832271]
[1732371306054,5.16832271,259.8,259.7,5.16832271]
[1732371306562,5.16832271,259.8,259.72,5.16832271]
[1732371308173,8.102,259.87,259.69,20.864]
[1732371308383,8.102,259.87,259.76,5.16832271]
[1732371308553,5.16832271,259.86,259.76,5.16832271]
[1732371308760,5.16832271,259.84,259.76,5.16832271]
[1732371308962,12.8693,259.9,259.78,5.16832271]
[1732371309160,5.16832271,259.88,259.78,5.16832271]
[1732371309373,5.16832271,259.88,259.8,5.16832271]
[1732371309575,18.03762271,259.9,259.8,5.16832271]
[1732371309779,8.0438,259.94,259.82,5.16832271]
[1732371309958,5.16832271,259.93,259.84,5.16832271]
[1732371310960,5.16832271,259.93,259.86,5.16832271]
[1732371311376,5.16832271,259.97,259.88,5.16832271]
[1732371311674,5.16832271,259.97,259.8,20.0]
[1732371311850,8.0438,260.0,259.87,5.16832271]
[1732371312051,5.16832271,259.91,259.8,20.0]
[1732371312269,5.16832271,259.93,259.85,5.16832271]
[1732371312660,5.16832271,259.96,259.87,5.16832271]
[1732371312987,5.16832271,259.94,259.87,5.16832271]
[1732371313785,5.16832271,259.94,259.85,5.16832271]
[1732371313974,5.16832271,259.92,259.84,5.16832271]
[1732371314181,5.16832271,259.92,259.82,25.16832271]
[1732371314777,5.16832271,259.9,259.82,25.16832271]
[1732371315467,5.16832271,259.9,259.82,5.16832271]
[1732371315669,5.16832271,259.9,259.76,19.4522]
[1732371315670,5.16832271,259.88,259.81,20.0]
[1732371316067,5.16832271,259.88,259.8,5.16832271]
[1732371316485,5.16832271,259.86,259.78,5.16832271]
[1732371317483,5.16832271,259.84,259.76,19.4522]
[1732371317676,12.8693,259.91,259.73,7.5738]
[1732371317677,5.16832271,259.82,259.73,7.5738]
[1732371317880,5.16832271,259.82,259.73,12.74212271]
[1732371318867,5.16832271,259.86,259.77,5.16832271]
[1732371319687,5.16832271,259.84,259.77,5.16832271]
[1732371319870,5.16832271,259.84,259.75,5.16832271]
[1732371320187,5.16832271,259.82,259.75,5.16832271]
[1732371320396,5.16832271,259.82,259.7,19.4522]
[1732371320572,5.16832271,259.8,259.73,5.16832271]
[1732371321673,5.16832271,259.8,259.71,5.16832271]
[1732371322091,5.16832271,259.78,259.69,5.16832271]
[1732371322466,5.16832271,259.76,259.63,4.45940383]
[1732371322661,5.16832271,259.74,259.64,5.16832271]
[1732371326890,8.07957634,259.74,259.65,8.07957634]
[1732371336298,8.07957634,259.76,259.67,8.07957634]
[1732371336476,20.8283,259.78,259.69,8.07957634]
[1732371336477,28.90787634,259.78,259.69,8.07957634]
[1732371336678,8.07957634,259.76,259.67,8.07957634]
[1732371336900,8.07957634,259.76,259.61,8.07957634]
[1732371336901,20.92447634,259.78,259.69,8.07957634]
[1732371337202,8.07957634,259.78,259.69,8.07957634]
[1732371337379,8.07957634,259.8,259.71,8.07957634]
[1732371339085,20.578,259.84,259.75,8.07957634]
[1732371339086,20.92447634,259.84,259.75,8.07957634]
[1732371340197,8.07957634,259.88,259.79,8.07957634]
[1732371340786,8.07957634,259.86,259.79,8.07957634]
[1732371341308,8.07957634,259.86,259.77,8.07957634]
[1732371341813,8.07957634,259.92,259.85,8.07957634]
[1732371341988,8.07957634,259.94,259.85,8.07957634]
[1732371342189,8.07957634,259.94,259.78,0.57716399]
[1732371342190,8.07957634,259.94,259.87,8.07957634]
[1732371343190,8.07957634,259.9,259.81,8.07957634]
[1732371343492,8.07957634,259.88,259.79,8.07957634]
[1732371343680,8.07957634,259.88,259.8,20.0]
[1732371344487,8.07957634,259.88,259.79,8.07957634]
[1732371345689,8.07957634,259.9,259.81,8.07957634]
[1732371347995,8.07957634,259.88,259.79,8.07957634]
[1732371348511,8.07957634,259.86,259.77,27.10167634]
[1732371348693,5.16646262,259.85,259.77,19.0221]
[1732371349009,5.16646262,259.85,259.76,5.16646262]
[1732371349410,5.16646262,259.83,259.74,5.16646262]
[1732371349612,8.2658,259.91,259.71,19.0121]
[1732371349613,5.16646262,259.81,259.71,19.0121]
[1732371349791,5.16646262,259.79,259.71,24.17856262]
[1732371350202,5.16646262,259.79,259.71,5.16646262]
[1732371350707,8.07651519,259.79,259.7,8.07651519]
[1732371351908,12.8399,259.86,259.65,19.0121]
[1732371351909,8.07651519,259.77,259.68,8.07651519]
[1732371352215,8.07651519,259.75,259.66,8.07651519]
[1732371352599,8.07651519,259.77,259.68,8.07651519]
[1732371353212,8.07651519,259.75,259.66,8.07651519]
[1732371353588,8.07651519,259.73,259.64,8.07651519]
[1732371356215,8.07651519,259.75,259.66,8.07651519]
[1732371357319,8.07651519,259.77,259.68,8.07651519]
[1732371358188,8.07651519,259.79,259.72,8.07651519]
[1732371360425,8.07651519,259.79,259.7,8.07651519]
[1732371360721,8.07651519,259.77,259.68,8.07651519]
[1732371360890,8.07651519,259.75,259.66,8.07651519]
[1732371361315,8.07651519,259.77,259.68,8.07651519]
[1732371361520,8.07651519,259.75,259.62,43.776884]
[1732371361712,8.07651519,259.71,259.58,22.8501]
[1732371361915,8.07651519,259.71,259.63,8.07651519]
[1732371362114,8.07651519,259.73,259.63,8.07651519]
[1732371362305,8.07651519,259.73,259.65,8.07651519]
[1732371365817,8.07651519,259.75,259.65,8.07651519]
[1732371366711,8.07651519,259.75,259.67,8.07651519]
[1732371367021,8.07651519,259.73,259.63,8.07651519]
[1732371367224,8.07651519,259.73,259.59,47.614884]
[1732371367225,8.07651519,259.73,259.65,8.07651519]
[1732371368502,12.8399,259.74,259.67,8.07651519]
[1732371368720,8.07651519,259.77,259.67,8.07651519]
[1732371369217,8.07651519,259.75,259.67,8.07651519]
[1732371369623,8.07651519,259.75,259.65,8.07651519]
[1732371370004,8.07651519,259.73,259.65,8.07651519]
[1732371370534,8.07651519,259.73,259.61,19.9573]
[1732371370828,5.17194412,259.71,259.62,25.17194412]
[1732371371201,5.17194412,259.71,259.58,4.45940383]
[1732371371418,5.17194412,259.71,259.61,5.17194412]
[1732371372507,5.17194412,259.69,259.61,5.17194412]
[1732371372934,5.17194412,259.67,259.57,5.17194412]
[1732371373229,5.17194412,259.65,259.57,5.17194412]
[1732371374029,5.17194412,259.63,259.55,5.17194412]
[1732371374321,5.17194412,259.57,259.41,19.9573]
[1732371374526,5.17194412,259.57,259.49,5.17194412]
[1732371374939,5.17194412,259.53,259.41,19.9573]
[1732371375119,5.17194412,259.51,259.43,5.17194412]
[1732371375321,5.17194412,259.49,259.39,5.17194412]
[1732371375627,5.17194412,259.47,259.34,19.9573]
[1732371375828,5.17194412,259.47,259.38,5.17194412]
[1732371376713,8.09657824,259.46,259.38,20.0]
[1732371377105,8.09657824,259.46,259.37,8.09657824]
[1732371377300,8.09657824,259.48,259.39,8.09657824]
[1732371377522,8.09657824,259.46,259.37,8.09657824]
[1732371377719,8.09657824,259.51,259.41,8.09657824]
[1732371378035,8.09657824,259.49,259.34,19.9573]
[1732371378212,3.8525,259.57,259.39,8.09657824]
[1732371378213,8.09657824,259.47,259.39,8.09657824]
[1732371378521,8.09657824,259.45,259.36,8.09657824]
[1732371378722,8.09657824,259.45,259.37,20.0]
[1732371379104,8.09657824,259.43,259.22,6.58257186]
[1732371379311,8.09657824,259.39,259.3,3.09657824]
[1732371379623,8.09657824,259.39,259.26,19.9573]
[1732371379624,8.09657824,259.41,259.32,8.09657824]
[1732371380714,8.09657824,259.39,259.3,8.09657824]
[1732371380913,8.09657824,259.39,259.31,20.0]
[1732371381227,8.09657824,259.39,259.3,8.09657824]
[1732371381927,8.09657824,259.37,259.29,23.776884]
[1732371382109,8.09657824,259.37,259.28,8.09657824]
[1732371382926,8.09657824,259.35,259.26,8.09657824]
[1732371383110,8.09657824,259.33,259.26,8.09657824]
[1732371384228,8.09657824,259.35,259.26,8.09657824]
[1732371384430,8.09657824,259.37,259.28,8.09657824]
[1732371387730,8.09657824,259.33,259.25,20.0]
[1732371387932,8.09657824,259.33,259.25,23.776884]
[1732371388629,8.09657824,259.35,259.26,8.09657824]
[1732371389343,22.5698,259.45,259.24,8.09657824]
[1732371389344,8.09657824,259.33,259.24,8.09657824]
[1732371389647,8.09657824,259.31,259.22,8.09657824]
[1732371391457,8.09657824,259.33,259.24,8.09657824]
[1732371391949,8.09657824,259.33,259.16,20.57851057]
[1732371392122,8.09657824,259.29,259.2,28.09657824]
[1732371392516,8.09657824,259.29,259.2,8.09657824]
[1732371394361,8.09657824,259.31,259.22,8.09657824]
[1732371395137,8.09657824,259.29,259.2,8.09657824]
[1732371395337,8.09657824,259.25,259.08,20.6962]
[1732371395626,8.09657824,259.2,259.11,8.09657824]
[1732371396025,8.09657824,259.18,259.09,8.09657824]
[1732371396954,12.5698,259.23,259.13,8.09657824]
[1732371396955,8.09657824,259.2,259.13,8.09657824]
[1732371397139,8.09657824,259.22,259.13,8.09657824]
[1732371397642,12.5698,259.23,259.13,8.09657824]
[1732371397643,8.09657824,259.2,259.13,8.09657824]
[1732371399123,8.09657824,259.2,259.11,8.09657824]
[1732371399334,8.09657824,259.2,259.12,23.776884]
[1732371400028,8.09657824,259.2,259.11,8.09657824]
[1732371400257,12.5698,259.23,259.09,28.09657824]
[1732371400258,8.09657824,259.18,259.09,28.09657824]
[1732371401340,8.09657824,259.22,259.14,23.776884]
[1732371402229,8.09657824,259.22,259.15,8.09657824]
[1732371402854,8.09657824,259.24,259.15,8.09657824]
[1732371404034,8.09657824,259.22,259.13,8.09657824]